[Event "DVM U10 2024"]
[Site "Duesseldorf"]
[Date "2024.12.28"]
[Round "4"]
[White "Pahl, Eirik"]
[Black "Holzhäuser, Thibaut Lautaro"]
[Result "1-0"]
[ECO "D00"]
[WhiteElo "1010"]
[BlackElo "955"]
[Annotator "NA"]
[PlyCount "124"]
[EventDate "2024.12.23"]
[EventType "team-tourn"]
[EventRounds "7"]
[EventCountry "GER"]
[SourceTitle "playchess.com"]
[Source "ChessBase"]
[SourceQuality "1"]
[TimeControl "3300+5"]

1. d4 {[%emt 0:00:02]} g6 {[%emt 0:00:08]} 2. Bg5 {[%emt 0:00:13]} Nf6 {[%emt 0:00:13]} 3. Bxf6 {[%emt 0:00:08]} exf6 {[%emt 0:00:09]} 4. Nc3 {[%emt 0:00:07]} Bg7 {[%emt 0:00:15]} 5. Nf3 {[%emt 0:00:16]} d5 {[%emt 0:00:07]} 6. e4 {[%emt 0:00:26]} c6 {[%emt 0:00:40]} 7. Bd3 {[%emt 0:00:16]} Be6 {[%emt 0:00:05]} 8. O-O {[%emt 0:00:21]} O-O {[%emt 0:02:13]} 9. Re1 {[%emt 0:00:19]} dxe4 {[%emt 0:00:38]} 10. Nxe4 {[%emt 0:00:30]} f5 {[%emt 0:00:21]} 11. Nc5 {[%emt 0:00:17]} Qb6 {[%emt 0:01:28]} 12. Nxe6 {[%emt 0:01:58]} fxe6 {[%emt 0:00:04]} 13. Ne5 {[%emt 0:00:45]} Qxd4 {[%emt 0:03:17]} 14. Nf3 {[%emt 0:00:45]} Qf6 {[%emt 0:01:09]} 15. Bc4 {[%emt 0:00:19]} Re8 {[%emt 0:03:29]} 16. Re5 {[%emt 0:01:12]} b5 {[%emt 0:02:44]} 17. Bb3 {[%emt 0:00:40]} Qf7 {[%emt 0:01:27]} 18. Ng5 {[%emt 0:01:08]} Bxe5 {[%emt 0:01:59]} 19. Nxf7 {[%emt 0:00:11]} Kxf7 {[%emt 0:00:13]} 20. Qe2 {[%emt 0:01:15]} Bxb2 {[%emt 0:00:36]} 21. Re1 {[%emt 0:00:05]} Bc3 {[%emt 0:00:04]} 22. Bxe6+ {[%emt 0:00:10]} Kf6 {[%emt 0:00:58]} 23. Rd1 {[%emt 0:04:44]} Rxe6 {[%emt 0:00:20]} 24. Qd3 {[%emt 0:00:30]} Re1+ {[%emt 0:01:03]} 25. Rxe1 {[%emt 0:00:09]} Bxe1 {[%emt 0:00:30]} 26. Qd6+ {[%emt 0:00:09]} Kg5 {[%emt 0:00:39]} 27. Qe7+ {[%emt 0:00:10]} Kh6 {[%emt 0:00:09]} 28. Qxe1 {[%emt 0:00:13]} Nd7 {[%emt 0:02:26]} 29. Qd2+ {[%emt 0:00:15]} Kg7 {[%emt 0:00:47]} 30. Qxd7+ {[%emt 0:00:08]} Kh6 {[%emt 0:00:14]} 31. Qxc6 {[%emt 0:00:18]} Rd8 {[%emt 0:00:02]} 32. g3 {[%emt 0:00:28]} Kg5 {[%emt 0:00:27]} 33. h4+ {[%emt 0:00:01]} Kh6 {[%emt 0:00:10]} 34. Kg2 {[%emt 0:01:02]} Rb8 {[%emt 0:00:25]} 35. Qf3 {[%emt 0:00:36]} Rb6 {[%emt 0:00:18]} 36. Qf4+ {[%emt 0:00:23]} Kg7 {[%emt 0:00:29]} 37. Qc7+ {[%emt 0:00:08]} Kf6 {[%emt 0:00:05]} 38. Qxa7 {[%emt 0:00:11]} Re6 {[%emt 0:00:07]} 39. Qd4+ {[%emt 0:00:22]} Kf7 {[%emt 0:00:09]} 40. Qf4 {[%emt 0:00:23]} Kg7 {[%emt 0:00:39]} 41. g4 {[%emt 0:01:28]} Re4 {[%emt 0:00:20]} 42. Qc7+ {[%emt 0:00:27]} Kf6 {[%emt 0:00:21]} 43. g5+ {[%emt 0:00:06]} Ke6 {[%emt 0:00:28]} 44. Qc6+ {[%emt 0:00:09]} Kf7 {[%emt 0:00:20]} 45. Qf6+ {[%emt 0:00:16]} Kg8 {[%emt 0:00:25]} 46. h5 {[%emt 0:00:24]} Rg4+ {[%emt 0:00:28]} 47. Kf3 {[%emt 0:00:22]} gxh5 {[%emt 0:00:31]} 48. Qxf5 {[%emt 0:00:12]} Kg7 {[%emt 0:00:11]} 49. Qf6+ {[%emt 0:00:17]} Kg8 {[%emt 0:00:07]} 50. Qe6+ {[%emt 0:00:13]} Kg7 {[%emt 0:00:08]} 51. Qe7+ {[%emt 0:00:34]} Kg8 {[%emt 0:00:23]} 52. Qe8+ {[%emt 0:00:09]} Kg7 {[%emt 0:00:08]} 53. Qxh5 {[%emt 0:00:07]} Rc4 {[%emt 0:00:14]} 54. Qh6+ {[%emt 0:00:44]} Kg8 {[%emt 0:00:12]} 55. Qe6+ {[%emt 0:00:30]} Kg7 {[%emt 0:00:09]} 56. Qd7+ {[%emt 0:00:17]} Kg8 {[%emt 0:00:14]} 57. Qxb5 {[%emt 0:00:09]} Rc8 {[%emt 0:00:10]} 58. Qd5+ {[%emt 0:00:25]} Kg7 {[%emt 0:00:12]} 59. Qd7+ {[%emt 0:00:08]} Kg8 {[%emt 0:00:19]} 60. Qd8+ {[%emt 0:00:14]} Kg7 61. Qxc8 {[%emt 0:01:14]} h6 {[%emt 0:00:17]} 62. Qe6 h5 1-0

[Event "DVM U10 2024"]
[Site "Duesseldorf"]
[Date "2024.12.28"]
[Round "4"]
[White "Sandros Izzi, Diego"]
[Black "Mätz, Mark"]
[Result "0-1"]
[ECO "B30"]
[WhiteElo "975"]
[BlackElo "767"]
[Annotator "NA"]
[PlyCount "130"]
[EventDate "2024.12.23"]
[EventType "team-tourn"]
[EventRounds "7"]
[EventCountry "GER"]
[SourceTitle "playchess.com"]
[Source "ChessBase"]
[SourceQuality "1"]
[TimeControl "3300+5"]

1. e4 {[%emt 0:00:01]} c5 {[%emt 0:00:05]} 2. Bc4 {[%emt 0:00:04]} Nc6 {[%emt 0:00:08]} 3. Nf3 {[%emt 0:00:09]} e5 {[%emt 0:00:12]} 4. Nc3 {[%emt 0:00:06]} d6 {[%emt 0:00:13]} 5. d3 {[%emt 0:00:03]} Nf6 {[%emt 0:00:14]} 6. Bg5 {[%emt 0:00:06]} Be7 {[%emt 0:00:09]} 7. Nd5 {[%emt 0:00:11]} Nxd5 {[%emt 0:00:12]} 8. exd5 {[%emt 0:00:19]} Bxg5 {[%emt 0:00:14]} 9. dxc6 {[%emt 0:00:05]} bxc6 {[%emt 0:00:19]} 10. Nxg5 {[%emt 0:00:08]} Qxg5 {[%emt 0:00:11]} 11. Qf3 {[%emt 0:00:09]} d5 {[%emt 0:00:20]} 12. Bb3 {[%emt 0:00:17]} Bf5 {[%emt 0:00:27]} 13. O-O {[%emt 0:00:17]} O-O {[%emt 0:00:12]} 14. c4 {[%emt 0:00:15]} e4 {[%emt 0:00:48]} 15. dxe4 {[%emt 0:00:13]} Bxe4 {[%emt 0:00:13]} 16. Qg3 {[%emt 0:00:16]} Qf6 {[%emt 0:00:35]} 17. f3 {[%emt 0:00:19]} Qd4+ {[%emt 0:00:26]} 18. Kh1 {[%emt 0:00:17]} Bg6 {[%emt 0:00:43]} 19. cxd5 {[%emt 0:00:10]} cxd5 {[%emt 0:00:13]} 20. Qf2 {[%emt 0:00:17]} Qe5 {[%emt 0:00:57]} 21. Qxc5 {[%emt 0:00:12]} Rfd8 {[%emt 0:00:30]} 22. Rae1 {[%emt 0:01:23]} Qxb2 {[%emt 0:00:45]} 23. Bxd5 {[%emt 0:00:10]} Rac8 {[%emt 0:00:29]} 24. Qa5 {[%emt 0:00:31]} Bd3 {[%emt 0:00:42]} 25. Rg1 {[%emt 0:00:23]} Qd4 {[%emt 0:00:28]} 26. Be4 {[%emt 0:00:32]} h6 {[%emt 0:00:23]} 27. Bxd3 {[%emt 0:00:39]} Qxd3 {[%emt 0:00:35]} 28. Qxa7 {[%emt 0:00:26]} Rd7 {[%emt 0:01:01]} 29. Qa4 {[%emt 0:00:39]} Rcd8 {[%emt 0:00:36]} 30. h3 {[%emt 0:00:15]} Qd5 {[%emt 0:00:41]} 31. Re2 {[%emt 0:00:34]} Ra8 {[%emt 0:00:42]} 32. Qc2 {[%emt 0:00:15]} g6 {[%emt 0:00:48]} 33. Rge1 {[%emt 0:00:17]} Rdd8 {[%emt 0:00:33]} 34. a4 {[%emt 0:01:32]} Qd4 {[%emt 0:00:36]} 35. Re4 {[%emt 0:01:26]} Qd7 {[%emt 0:00:25]} 36. Qd2 {[%emt 0:01:07]} Qxd2 {[%emt 0:00:14]} 37. R1e2 {[%emt 0:00:13]} Qd7 {[%emt 0:00:44]} 38. Ra2 {[%emt 0:00:34]} Ra7 {[%emt 0:00:00]} 39. Kh2 {[%emt 0:00:32]} Rda8 {[%emt 0:00:07]} 40. a5 {[%emt 0:19:53]} f5 {[%emt 0:00:34]} 41. Re5 {[%emt 0:00:43]} Qc7 {[%emt 0:01:24]} 42. Rae2 {[%emt 0:00:24]} Rxa5 {[%emt 0:00:53]} 43. f4 {[%emt 0:00:44]} Rxe5 {[%emt 0:00:08]} 44. fxe5 {[%emt 0:00:09]} Re8 {[%emt 0:00:34]} 45. g3 {[%emt 0:00:52]} g5 {[%emt 0:01:03]} 46. e6 {[%emt 0:00:43]} f4 {[%emt 0:00:11]} 47. gxf4 {[%emt 0:00:12]} Qxf4+ {[%emt 0:00:07]} 48. Kg2 {[%emt 0:00:13]} Kg7 {[%emt 0:00:31]} 49. e7 {[%emt 0:00:15]} Kf7 {[%emt 0:00:49]} 50. Rf2 {[%emt 0:00:08]} Rxe7 {[%emt 0:00:20]} 51. Rxf4+ {[%emt 0:00:05]} gxf4 {[%emt 0:00:13]} 52. Kf3 {[%emt 0:00:06]} Kg6 {[%emt 0:00:11]} 53. Kxf4 {[%emt 0:00:09]} h5 {[%emt 0:00:19]} 54. h4 {[%emt 0:00:16]} Rc7 {[%emt 0:00:15]} 55. Kg3 {[%emt 0:00:11]} Kf5 {[%emt 0:00:35]} 56. Kf3 {[%emt 0:00:49]} Rc3+ {[%emt 0:02:16]} 57. Kg2 {[%emt 0:00:00]} Kg4 {[%emt 0:00:23]} 58. Kh2 {[%emt 0:00:04]} Kxh4 {[%emt 0:00:15]} 59. Kg2 {[%emt 0:00:11]} Kg4 {[%emt 0:00:13]} 60. Kh2 {[%emt 0:00:08]} Rb3 {[%emt 0:00:33]} 61. Kg2 {[%emt 0:00:20]} Rb2+ {[%emt 0:00:09]} 62. Kf1 {[%emt 0:00:26]} h4 {[%emt 0:00:17]} 63. Kg1 {[%emt 0:00:08]} Kf3 {[%emt 0:00:27]} 64. Kh1 {[%emt 0:00:12]} Kg3 {[%emt 0:00:15]} 65. Kg1 {[%emt 0:00:07]} Rb1# {[%emt 0:00:05]} 0-1

[Event "DVM U10 2024"]
[Site "Duesseldorf"]
[Date "2024.12.28"]
[Round "4"]
[White "Klages, Justus"]
[Black "Pohlmann, Johannes Leon"]
[Result "0-1"]
[ECO "B28"]
[WhiteElo "972"]
[BlackElo "1127"]
[Annotator "NA"]
[PlyCount "129"]
[EventDate "2024.12.23"]
[EventType "team-tourn"]
[EventRounds "7"]
[EventCountry "GER"]
[SourceTitle "playchess.com"]
[Source "ChessBase"]
[SourceQuality "1"]
[TimeControl "3300+5"]

1. e4 {[%emt 0:00:02]} c5 {[%emt 0:00:07]} 2. c3 {[%emt 0:00:10]} e6 {[%emt 0:00:13]} 3. d4 {[%emt 0:00:24]} d5 {[%emt 0:00:10]} 4. e5 {[%emt 0:01:29]} a6 {[%emt 0:00:16]} 5. Nf3 {[%emt 0:01:09]} Nc6 {[%emt 0:00:12]} 6. Be3 {[%emt 0:01:37]} Qc7 {[%emt 0:01:00]} 7. Bd3 {[%emt 0:02:05]} Bd7 {[%emt 0:00:58]} 8. Nbd2 {[%emt 0:02:12]} Be7 {[%emt 0:00:41]} 9. O-O {[%emt 0:00:41]} O-O-O {[%emt 0:01:11]} 10. Rb1 {[%emt 0:03:27]} Kb8 {[%emt 0:00:53]} 11. a3 {[%emt 0:01:23]} f6 {[%emt 0:00:23]} 12. exf6 {[%emt 0:03:36]} Nxf6 {[%emt 0:00:12]} 13. b4 {[%emt 0:00:52]} c4 {[%emt 0:00:23]} 14. Bc2 {[%emt 0:04:29]} Na7 {[%emt 0:00:32]} 15. Ne5 {[%emt 0:02:14]} Be8 {[%emt 0:01:42]} 16. a4 {[%emt 0:05:35]} Bd6 {[%emt 0:01:32]} 17. Bf4 {[%emt 0:01:22]} Nd7 {[%emt 0:01:19]} 18. Re1 {[%emt 0:00:29]} Nxe5 {[%emt 0:04:14]} 19. Bxe5 {[%emt 0:00:41]} Bxe5 {[%emt 0:01:21]} 20. dxe5 {[%emt 0:03:30]} Bg6 {[%emt 0:01:24]} 21. Bxg6 {[%emt 0:00:49]} hxg6 {[%emt 0:00:23]} 22. Qg4 {[%emt 0:00:31]} Qf7 {[%emt 0:01:03]} 23. Qd4 {[%emt 0:01:29]} Nc6 {[%emt 0:02:25]} 24. Qc5 {[%emt 0:01:47]} Qe7 {[%emt 0:00:57]} 25. Qxe7 {[%emt 0:01:01]} Nxe7 {[%emt 0:00:14]} 26. b5 {[%emt 0:00:14]} a5 {[%emt 0:00:31]} 27. Rb2 {[%emt 0:02:55]} Nc8 {[%emt 0:00:31]} 28. Reb1 {[%emt 0:00:19]} Nb6 {[%emt 0:00:41]} 29. Nf3 {[%emt 0:00:31]} Rdf8 {[%emt 0:00:56]} 30. Ra2 {[%emt 0:00:47]} Rh5 {[%emt 0:00:57]} 31. h3 {[%emt 0:00:52]} Rhf5 {[%emt 0:00:48]} 32. Kf1 {[%emt 0:00:59]} Rxf3 {[%emt 0:02:18]} 33. gxf3 {[%emt 0:00:28]} Rxf3 {[%emt 0:00:11]} 34. Rc1 {[%emt 0:00:37]} Rxh3 {[%emt 0:00:26]} 35. Kg2 {[%emt 0:00:39]} Rd3 {[%emt 0:02:54]} 36. f3 {[%emt 0:00:33]} Ka7 {[%emt 0:03:18]} 37. Kg3 {[%emt 0:00:12]} Nd7 {[%emt 0:00:46]} 38. Kf4 {[%emt 0:01:08]} g5+ {[%emt 0:02:30]} 39. Kg4 {[%emt 0:00:18]} Nxe5+ {[%emt 0:00:28]} 40. Kxg5 {[%emt 0:01:05]} Rxf3 {[%emt 0:00:26]} 41. Rb2 {[%emt 0:00:46]} b6 {[%emt 0:00:35]} 42. Rd2 {[%emt 0:01:22]} Rf5+ {[%emt 0:00:15]} 43. Kh4 {[%emt 0:00:11]} Nf3+ {[%emt 0:00:40]} 44. Kh3 {[%emt 0:00:40]} Nxd2 {[%emt 0:00:00]} 45. Re1 {[%emt 0:00:26]} Rf6 {[%emt 0:00:22]} 46. Rg1 {[%emt 0:00:26]} Rh6+ {[%emt 0:00:19]} 47. Kg3 {[%emt 0:00:08]} Rg6+ {[%emt 0:00:03]} 48. Kf2 {[%emt 0:00:05]} Rxg1 {[%emt 0:00:50]} 49. Kxg1 {[%emt 0:00:01]} Nb1 {[%emt 0:00:18]} 50. Kf2 {[%emt 0:00:04]} Nxc3 {[%emt 0:00:17]} 51. Kf3 {[%emt 0:00:03]} Nxa4 {[%emt 0:00:35]} 52. Ke3 {[%emt 0:00:09]} Nc3 {[%emt 0:00:30]} 53. Kd2 {[%emt 0:00:03]} Nxb5 {[%emt 0:00:11]} 54. Kc2 {[%emt 0:00:03]} d4 {[%emt 0:01:06]} 55. Kb2 {[%emt 0:00:04]} d3 {[%emt 0:00:37]} 56. Kc1 {[%emt 0:00:07]} c3 {[%emt 0:00:28]} 57. Kd1 {[%emt 0:00:05]} d2 {[%emt 0:00:17]} 58. Kc2 {[%emt 0:00:10]} Nd4+ {[%emt 0:00:14]} 59. Kd1 {[%emt 0:00:03]} Nf3 {[%emt 0:01:02]} 60. Kc2 {[%emt 0:00:09]} a4 {[%emt 0:00:31]} 61. Kd1 {[%emt 0:00:16]} a3 {[%emt 0:00:44]} 62. Kc2 {[%emt 0:00:04]} a2 {[%emt 0:00:13]} 63. Kxc3 {[%emt 0:00:06]} d1=Q {[%emt 0:00:31]} 64. Kc4 {[%emt 0:00:04]} a1=Q {[%emt 0:00:00]} 65. Kb5 {[%emt 0:00:14]} 0-1

[Event "DVM U10 2024"]
[Site "Duesseldorf"]
[Date "2024.12.28"]
[Round "4"]
[White "Özdemir, Anna Valentina"]
[Black "Wang, Alice"]
[Result "1-0"]
[ECO "C56"]
[WhiteElo "954"]
[BlackElo "958"]
[Annotator "NA"]
[PlyCount "79"]
[EventDate "2024.12.23"]
[EventType "team-tourn"]
[EventRounds "7"]
[EventCountry "GER"]
[SourceTitle "playchess.com"]
[Source "ChessBase"]
[SourceQuality "1"]
[TimeControl "3300+5"]

1. e4 {[%emt 0:00:03]} e5 {[%emt 0:00:03]} 2. Nf3 {[%emt 0:00:07]} Nc6 {[%emt 0:00:05]} 3. d4 {[%emt 0:00:20]} d6 {[%emt 0:01:05]} 4. Bc4 {[%emt 0:00:08]} Nf6 {[%emt 0:00:09]} 5. dxe5 {[%emt 0:00:17]} dxe5 {[%emt 0:00:15]} 6. Qxd8+ {[%emt 0:00:22]} Nxd8 {[%emt 0:00:12]} 7. Nc3 {[%emt 0:00:40]} Nc6 {[%emt 0:00:07]} 8. Bg5 {[%emt 0:00:12]} h6 {[%emt 0:00:39]} 9. Bxf6 {[%emt 0:00:12]} gxf6 {[%emt 0:00:07]} 10. O-O {[%emt 0:00:24]} Be6 {[%emt 0:01:03]} 11. Bxe6 {[%emt 0:00:25]} fxe6 {[%emt 0:00:05]} 12. Rad1 {[%emt 0:00:11]} Bd6 {[%emt 0:00:32]} 13. Nb5 {[%emt 0:00:46]} O-O-O {[%emt 0:00:43]} 14. h3 {[%emt 0:01:38]} f5 {[%emt 0:00:07]} 15. Rfe1 {[%emt 0:01:31]} Kb8 {[%emt 0:01:05]} 16. c3 {[%emt 0:01:20]} a6 {[%emt 0:00:20]} 17. Nxd6 {[%emt 0:00:40]} cxd6 {[%emt 0:00:13]} 18. b4 {[%emt 0:00:14]} d5 {[%emt 0:01:30]} 19. exf5 {[%emt 0:00:29]} exf5 {[%emt 0:00:12]} 20. Nxe5 {[%emt 0:00:09]} Ne7 {[%emt 0:03:11]} 21. Nf7 {[%emt 0:00:17]} Ng6 {[%emt 0:01:16]} 22. Nxd8 {[%emt 0:00:20]} Rxd8 {[%emt 0:00:05]} 23. c4 {[%emt 0:00:19]} Ne7 {[%emt 0:00:19]} 24. Rxe7 {[%emt 0:00:20]} d4 {[%emt 0:01:05]} 25. b5 {[%emt 0:00:19]} axb5 {[%emt 0:00:11]} 26. cxb5 {[%emt 0:00:09]} d3 {[%emt 0:00:07]} 27. a4 {[%emt 0:00:16]} d2 {[%emt 0:00:07]} 28. Kf1 {[%emt 0:00:27]} Ka7 {[%emt 0:00:13]} 29. Ke2 {[%emt 0:00:43]} Kb6 {[%emt 0:00:13]} 30. Rxd2 {[%emt 0:00:10]} Rxd2+ {[%emt 0:00:08]} 31. Kxd2 {[%emt 0:00:12]} Ka5 {[%emt 0:00:03]} 32. Rxb7 {[%emt 0:00:12]} Kxa4 {[%emt 0:00:01]} 33. b6 {[%emt 0:01:20]} Ka5 {[%emt 0:00:11]} 34. Kc3 {[%emt 0:00:11]} Ka6 {[%emt 0:00:15]} 35. Rc7 {[%emt 0:00:20]} Kxb6 {[%emt 0:00:09]} 36. Rc4 {[%emt 0:00:09]} Kb5 {[%emt 0:00:13]} 37. g4 {[%emt 0:00:16]} fxg4 {[%emt 0:00:16]} 38. hxg4 {[%emt 0:00:08]} Kb6 {[%emt 0:00:05]} 39. f4 {[%emt 0:00:11]} Kb5 {[%emt 0:00:12]} 40. f5 {[%emt 0:00:21]} 1-0

[Event "DVM U10 2024"]
[Site "Duesseldorf"]
[Date "2024.12.28"]
[Round "4"]
[White "Zhu, Elias"]
[Black "Essers, Mathilda Marie"]
[Result "1-0"]
[ECO "B30"]
[WhiteElo "934"]
[BlackElo "1435"]
[Annotator "NA"]
[PlyCount "113"]
[EventDate "2024.12.23"]
[EventType "team-tourn"]
[EventRounds "7"]
[EventCountry "GER"]
[SourceTitle "playchess.com"]
[Source "ChessBase"]
[SourceQuality "1"]
[TimeControl "3300+5"]

1. e4 {[%emt 0:00:01]} c5 {[%emt 0:00:07]} 2. Nf3 {[%emt 0:00:10]} e6 {[%emt 0:00:07]} 3. Nc3 {[%emt 0:00:13]} Nc6 {[%emt 0:00:09]} 4. Bc4 {[%emt 0:00:29]} a6 {[%emt 0:00:17]} 5. O-O {[%emt 0:00:17]} d6 {[%emt 0:00:18]} 6. d3 {[%emt 0:01:01]} h6 {[%emt 0:00:31]} 7. Re1 {[%emt 0:02:25]} Nf6 {[%emt 0:00:34]} 8. Be3 {[%emt 0:00:43]} d5 {[%emt 0:00:27]} 9. exd5 {[%emt 0:00:07]} exd5 {[%emt 0:00:22]} 10. Bb3 {[%emt 0:00:36]} d4 {[%emt 0:00:19]} 11. Bxd4+ {[%emt 0:01:34]} Be7 {[%emt 0:00:45]} 12. Bxc5 {[%emt 0:00:16]} O-O {[%emt 0:00:10]} 13. Bxe7 {[%emt 0:00:14]} Nxe7 {[%emt 0:00:09]} 14. d4 {[%emt 0:00:43]} Bd7 {[%emt 0:01:09]} 15. Ba4 {[%emt 0:00:12]} Bxa4 {[%emt 0:00:15]} 16. Nxa4 {[%emt 0:03:10]} Nc6 {[%emt 0:03:38]} 17. c4 {[%emt 0:00:46]} b5 {[%emt 0:00:41]} 18. cxb5 {[%emt 0:00:00]} axb5 {[%emt 0:00:47]} 19. Nc5 {[%emt 0:00:09]} Nd7 {[%emt 0:00:33]} 20. Nxd7 {[%emt 0:00:34]} Qxd7 {[%emt 0:00:22]} 21. a3 {[%emt 0:02:35]} Ra7 {[%emt 0:01:41]} 22. Ne5 {[%emt 0:00:00]} Nxe5 {[%emt 0:00:56]} 23. dxe5 {[%emt 0:00:00]} Qxd1 {[%emt 0:00:13]} 24. Raxd1 {[%emt 0:00:00]} Kh7 {[%emt 0:00:15]} 25. Rd5 {[%emt 0:00:00]} Rb7 {[%emt 0:00:35]} 26. e6 {[%emt 0:00:00]} fxe6 {[%emt 0:00:05]} 27. Rxe6 {[%emt 0:00:00]} Rc7 {[%emt 0:00:35]} 28. Re1 {[%emt 0:00:00]} Re8 {[%emt 0:01:15]} 29. Red1 {[%emt 0:00:00]} Rf8 {[%emt 0:00:48]} 30. Rxb5 {[%emt 0:00:00]} Rfc8 {[%emt 0:00:31]} 31. g3 {[%emt 0:00:22]} Rc1 {[%emt 0:00:19]} 32. Rxc1 {[%emt 0:00:07]} Rxc1+ {[%emt 0:00:06]} 33. Kg2 {[%emt 0:00:06]} g5 {[%emt 0:00:15]} 34. a4 {[%emt 0:00:09]} Ra1 {[%emt 0:00:53]} 35. a5 {[%emt 0:00:07]} Kg7 {[%emt 0:00:17]} 36. b4 Kf7 {[%emt 0:00:00]} 37. Rb6 {[%emt 0:00:47]} Ke7 {[%emt 0:00:27]} 38. Rc6 Kd7 {[%emt 0:00:00]} 39. Rc4 {[%emt 0:00:45]} Ra4 {[%emt 0:00:00]} 40. h4 {[%emt 0:00:19]} g4 {[%emt 0:00:26]} 41. Rxg4 {[%emt 0:00:40]} Kc6 {[%emt 0:00:14]} 42. Rg6+ {[%emt 0:01:00]} Kb5 {[%emt 0:00:10]} 43. f4 {[%emt 0:04:27]} Rxb4 44. a6 {[%emt 0:00:05]} Ra4 {[%emt 0:00:21]} 45. f5 {[%emt 0:00:05]} Ra2+ {[%emt 0:00:05]} 46. Kh3 {[%emt 0:00:05]} Rxa6 {[%emt 0:00:05]} 47. Rxa6 {[%emt 0:00:50]} Kxa6 {[%emt 0:00:25]} 48. f6 {[%emt 0:00:10]} h5 {[%emt 0:00:06]} 49. f7 {[%emt 0:00:04]} Ka5 {[%emt 0:00:42]} 50. f8=Q {[%emt 0:00:36]} Ka4 {[%emt 0:00:25]} 51. Qb8 Ka5 {[%emt 0:00:00]} 52. Kg2 {[%emt 0:00:10]} Ka4 {[%emt 0:00:25]} 53. Kf3 {[%emt 0:00:09]} Ka5 {[%emt 0:00:00]} 54. Ke4 {[%emt 0:00:15]} Ka4 {[%emt 0:00:00]} 55. Kd4 {[%emt 0:00:07]} Ka3 {[%emt 0:00:02]} 56. Kc3 {[%emt 0:00:09]} Ka4 {[%emt 0:00:06]} 57. Qb4# {[%emt 0:00:05]} 1-0

[Event "DVM U10 2024"]
[Site "Duesseldorf"]
[Date "2024.12.28"]
[Round "4"]
[White "Najjar, Anton"]
[Black "Peters, Leopold"]
[Result "1/2-1/2"]
[ECO "C02"]
[WhiteElo "933"]
[BlackElo "1701"]
[Annotator "NA RC"]
[PlyCount "45"]
[EventDate "2024.12.23"]
[EventType "team-tourn"]
[EventRounds "7"]
[EventCountry "GER"]
[SourceTitle "playchess.com"]
[Source "ChessBase"]
[SourceQuality "1"]
[TimeControl "3300+5"]

1. e4 {[%emt 0:00:01]} e6 {[%emt 0:00:05]} 2. d4 {[%emt 0:00:06]} d5 {[%emt 0:00:05]} 3. e5 {[%emt 0:00:06]} c5 {[%emt 0:00:06]} 4. c3 {[%emt 0:00:06]} Nc6 {[%emt 0:00:26]} 5. Nf3 {[%emt 0:00:28]} Bd7 {[%emt 0:00:06]} 6. Be2 {[%emt 0:00:18]} Qb6 {[%emt 0:00:16]} 7. dxc5 {[%emt 0:00:15]} Bxc5 {[%emt 0:00:12]} 8. O-O {[%emt 0:00:10]} f6 {[%emt 0:00:59]} 9. exf6 {[%emt 0:02:44]} Nxf6 {[%emt 0:00:09]} 10. Nbd2 {[%emt 0:00:50]} O-O {[%emt 0:00:24]} 11. Nb3 {[%emt 0:00:17]} Bd6 {[%emt 0:01:20]} 12. Be3 {[%emt 0:00:42]} Qc7 {[%emt 0:00:49]} 13. Nc5 {[%emt 0:00:56]} b6 {[%emt 0:05:01]} 14. Nxd7 {[%emt 0:01:28]} Qxd7 {[%emt 0:00:09]} 15. Bd3 {[%emt 0:02:18]} e5 {[%emt 0:04:42]} 16. Bb5 {[%emt 0:00:53]} a6 {[%emt 0:04:33]} 17. Be2 {[%emt 0:01:03]} b5 {[%emt 0:06:14]} 18. Bg5 {[%emt 0:01:38]} e4 {[%emt 0:04:40]} 19. Nd4 {[%emt 0:01:13]} Nxd4 {[%emt 0:02:58]} 20. Qxd4 {[%emt 0:00:40]} Be7 {[%emt 0:01:56]} 21. Rad1 {[%emt 0:01:19]} Rfd8 {[%emt 0:00:57]} 22. Bxf6 {[%emt 0:01:05]} Bxf6 {[%emt 0:00:16]} 23. Qd2 {[%emt 0:03:51]} 1/2-1/2

[Event "DVM U10 2024"]
[Site "Duesseldorf"]
[Date "2024.12.28"]
[Round "4"]
[White "Baskurt, Ayaz"]
[Black "Leppin, Joris"]
[Result "1-0"]
[ECO "B00"]
[WhiteElo "903"]
[BlackElo "890"]
[Annotator "NA"]
[PlyCount "111"]
[EventDate "2024.12.23"]
[EventType "team-tourn"]
[EventRounds "7"]
[EventCountry "GER"]
[SourceTitle "playchess.com"]
[Source "ChessBase"]
[SourceQuality "1"]
[TimeControl "3300+5"]

1. e4 {[%emt 0:00:01]} b6 {[%emt 0:00:09]} 2. Bc4 {[%emt 0:00:12]} Bb7 {[%emt 0:00:03]} 3. d3 {[%emt 0:00:10]} Nc6 {[%emt 0:00:15]} 4. Ne2 {[%emt 0:00:19]} g6 {[%emt 0:00:14]} 5. O-O {[%emt 0:00:17]} Bg7 {[%emt 0:00:10]} 6. Be3 {[%emt 0:00:42]} Nf6 {[%emt 0:00:07]} 7. Nd2 {[%emt 0:00:33]} d6 {[%emt 0:03:33]} 8. Nd4 {[%emt 0:03:22]} Nxd4 {[%emt 0:00:00]} 9. Bxd4 {[%emt 0:00:07]} O-O {[%emt 0:00:00]} 10. Re1 {[%emt 0:00:36]} e5 {[%emt 0:00:00]} 11. Be3 {[%emt 0:00:25]} Ng4 {[%emt 0:00:00]} 12. Qxg4 {[%emt 0:00:21]} Bc8 {[%emt 0:00:00]} 13. Qe2 {[%emt 0:01:01]} Qh4 {[%emt 0:00:00]} 14. Bd5 {[%emt 0:00:21]} Rb8 {[%emt 0:00:00]} 15. Nf3 {[%emt 0:01:16]} Qg4 {[%emt 0:00:00]} 16. Ng5 {[%emt 0:00:17]} Bh6 {[%emt 0:00:00]} 17. Qxg4 {[%emt 0:00:26]} Bxg4 {[%emt 0:00:00]} 18. h3 {[%emt 0:00:53]} Bxg5 {[%emt 0:00:09]} 19. hxg4 {[%emt 0:00:53]} Bxe3 {[%emt 0:00:00]} 20. Rxe3 {[%emt 0:00:39]} Rbc8 {[%emt 0:00:21]} 21. Rae1 {[%emt 0:01:04]} c6 {[%emt 0:00:05]} 22. Bb3 {[%emt 0:00:29]} c5 {[%emt 0:00:38]} 23. c3 {[%emt 0:00:26]} b5 {[%emt 0:00:20]} 24. Rc1 {[%emt 0:01:12]} c4 {[%emt 0:00:00]} 25. dxc4 {[%emt 0:00:57]} bxc4 {[%emt 0:00:04]} 26. Ba4 {[%emt 0:00:22]} f5 {[%emt 0:00:19]} 27. exf5 {[%emt 0:00:15]} gxf5 {[%emt 0:00:12]} 28. gxf5 {[%emt 0:00:16]} Rxf5 {[%emt 0:00:21]} 29. Rf3 {[%emt 0:00:50]} Rxf3 {[%emt 0:00:12]} 30. gxf3 {[%emt 0:00:10]} Kh8 {[%emt 0:00:11]} 31. Bb5 {[%emt 0:00:19]} Rg8+ {[%emt 0:00:12]} 32. Kf1 {[%emt 0:00:18]} Rf8 {[%emt 0:00:10]} 33. Bxc4 {[%emt 0:00:27]} Rxf3 {[%emt 0:00:11]} 34. Bd5 {[%emt 0:00:17]} Rd3 {[%emt 0:00:15]} 35. Be4 {[%emt 0:00:25]} Rh3 {[%emt 0:00:18]} 36. Rd1 {[%emt 0:00:20]} Rh4 {[%emt 0:00:27]} 37. f3 {[%emt 0:00:25]} Rh1+ {[%emt 0:00:05]} 38. Ke2 {[%emt 0:00:13]} Rh2+ {[%emt 0:00:16]} 39. Ke3 {[%emt 0:00:42]} Rxb2 {[%emt 0:00:13]} 40. Rxd6 {[%emt 0:00:18]} Rxa2 {[%emt 0:00:03]} 41. Rd8+ {[%emt 0:00:17]} Kg7 {[%emt 0:00:02]} 42. Rd7+ {[%emt 0:00:15]} Kh8 {[%emt 0:00:10]} 43. Rxh7+ {[%emt 0:00:18]} Kg8 {[%emt 0:00:12]} 44. Bd5+ {[%emt 0:00:21]} Kxh7 {[%emt 0:00:16]} 45. Bxa2 {[%emt 0:00:11]} Kg6 {[%emt 0:00:23]} 46. c4 {[%emt 0:00:14]} Kf5 {[%emt 0:00:04]} 47. c5 {[%emt 0:00:00]} Kf6 {[%emt 0:00:04]} 48. c6 {[%emt 0:00:00]} Ke7 {[%emt 0:00:42]} 49. Bd5 {[%emt 0:00:00]} Kd6 {[%emt 0:00:36]} 50. Ke4 {[%emt 0:00:00]} a5 {[%emt 0:00:29]} 51. Bg8 {[%emt 0:00:00]} Kxc6 {[%emt 0:00:26]} 52. Kxe5 {[%emt 0:00:00]} a4 {[%emt 0:00:13]} 53. f4 {[%emt 0:00:00]} Kd7 {[%emt 0:00:23]} 54. Kf6 {[%emt 0:00:00]} Ke8 {[%emt 0:00:39]} 55. Kg7 {[%emt 0:00:17]} Ke7 {[%emt 0:00:19]} 56. f5 {[%emt 0:00:09]} 1-0